fUSD/lending_fUSD_20240319
["ID","MTS","AMOUNT","RATE_DAILY","PERIOD"]
[319526429,1710827458921,-500.0,0.00054794,120]
[319526430,1710827458930,-944.04,0.00054794,120]
[319526431,1710827458939,-500.0,0.00054794,120]
[319526432,1710827458949,-500.0,0.00054794,120]
[319526433,1710827458961,-722.09,0.00054794,120]
[319526434,1710827458971,-500.0,0.00054794,120]
[319526435,1710827458980,-2628.6,0.00054794,120]
[319526436,1710827458990,-1967.08,0.00054794,120]
[319526437,1710827459000,-2164.28,0.00054794,120]
[319526438,1710827459010,-500.0,0.00054794,120]
[319526439,1710827459020,-500.0,0.00054794,120]
[319526440,1710827459029,-500.0,0.00054794,120]
[319526441,1710827459039,-4020.98,0.00054794,120]
[319526442,1710827459048,-647.76,0.00054794,120]
[319526443,1710827459058,-2736.28,0.00054794,120]
[319526444,1710827459068,-500.0,0.00054794,120]
[319526445,1710827459077,-500.0,0.00054794,120]
[319526446,1710827459091,-500.0,0.00054794,120]
[319526447,1710827459100,-500.0,0.00054794,120]
[319526448,1710827459110,-2992.32,0.00054794,120]
[319526449,1710827459119,-631.63,0.00054794,120]
[319526450,1710827459128,-1056.07,0.00054794,120]
[319526451,1710827459137,-503.77393228,0.00054794,120]
[319526452,1710827459147,-500.0,0.00054794,120]
[319526453,1710827459156,-500.0,0.00054794,120]
[319526454,1710827459165,-2979.51,0.00054794,120]
[319526455,1710827459175,-500.0,0.00054794,120]
[319526456,1710827459184,-519.8,0.00054794,120]
[319526457,1710827459194,-500.0,0.00054794,120]
[319526458,1710827459203,-767.17,0.00054794,120]
[319526459,1710827459218,-3047.94,0.00054794,120]
[319526460,1710827459227,-500.0,0.00054794,120]
[319526461,1710827459236,-500.0,0.00054794,120]
[319526462,1710827459245,-500.0,0.00054794,120]
[319526463,1710827459254,-500.0,0.00054794,120]
[319526464,1710827459263,-624.69,0.00054794,120]
[319526465,1710827459272,-500.0,0.00054794,120]
[319526466,1710827459281,-6905.17,0.00054794,120]
[319526467,1710827459291,-500.0,0.00054794,120]
[319526468,1710827459300,-2551.19,0.00054794,120]
[319526469,1710827459309,-1096.17,0.00054794,120]
[319526470,1710827459319,-1285.54,0.00054794,120]
[319526471,1710827459328,-500.0,0.00054794,120]
[319526472,1710827459337,-500.66798205,0.00054794,120]
[319526473,1710827459347,-500.0,0.00054794,120]
[319526474,1710827459357,-604.78,0.00054794,120]
[319526475,1710827459366,-500.0,0.00054794,120]
[319526476,1710827459374,-500.0,0.00054794,120]
[319526477,1710827459384,-1899.25,0.00054794,120]
[319526478,1710827459393,-500.0,0.00054794,120]
[319526479,1710827459402,-500.0,0.00054794,120]
[319526480,1710827459411,-500.0,0.00054794,120]
[319526481,1710827459421,-1182.85,0.00054794,120]
[319526482,1710827459431,-1089.16,0.00054794,120]
[319526483,1710827459441,-2224.33,0.00054794,120]
[319526484,1710827459450,-500.0,0.00054794,120]
[319526485,1710827459462,-2004.49,0.00054794,120]
[319526486,1710827459472,-364.14061115,0.00054794,120]
[319526487,1710827459482,-1747.58,0.00054794,120]
[319526488,1710827459491,-500.0,0.00054794,120]
[319526489,1710827459500,-1502.65,0.00054794,120]
[319526490,1710827459509,-500.0,0.00054794,120]
[319526491,1710827459518,-2093.13,0.00054794,120]
[319526492,1710827459527,-500.0,0.00054794,120]
[319526493,1710827459537,-500.0,0.00054794,120]
[319526494,1710827459546,-500.0,0.00054794,120]
[319526495,1710827459556,-500.0,0.00054794,120]
[319526496,1710827459565,-500.0,0.00054794,120]
[319526497,1710827459574,-151.22812638,0.00054794,120]
[319526498,1710827459584,-500.0,0.00054794,120]
[319526499,1710827459593,-413.05153069,0.00054794,120]
[319526500,1710827459602,-1662.12,0.00054794,120]
[319526501,1710827459612,-514.33,0.00054794,120]
[319526502,1710827459621,-500.0,0.00054794,120]
[319526503,1710827459630,-8736.8,0.00054794,120]
[319526504,1710827459639,-1393.08,0.00054794,120]
[319526505,1710827459649,-500.0,0.00054794,120]
[319526506,1710827459658,-500.0,0.00054794,120]
[319526507,1710827459667,-658.54,0.00054794,120]
[319526508,1710827459677,-500.0,0.00054794,120]
[319526509,1710827459687,-500.0,0.00054794,120]
[319526510,1710827459697,-648.17,0.00054794,120]
[319526511,1710827459706,-500.0,0.00054794,120]
[319526512,1710827459718,-2720.05,0.00054794,120]
[319526513,1710827459728,-1089.65,0.00054794,120]
[319526514,1710827459737,-500.0,0.00054794,120]
[319526515,1710827459748,-500.0,0.00054794,120]
[319526516,1710827459759,-500.0,0.00054794,120]
[319526517,1710827459770,-500.0,0.00054794,120]
[319526518,1710827459780,-1324.1,0.00054794,120]
[319526519,1710827459790,-604.81,0.00054794,120]
[319526520,1710827459801,-3530.08,0.00054794,120]
[319526521,1710827459812,-3588.24,0.00054794,120]
[319526522,1710827459822,-518.15419104,0.00054794,120]
[319526523,1710827459832,-891.74,0.00054794,120]
[319526524,1710827459842,-500.0,0.00054794,120]
[319526525,1710827459853,-3450.35,0.00054794,120]
[319526526,1710827459864,-2217.17,0.00054794,120]
[319526527,1710827459874,-500.0,0.00054794,120]
[319526528,1710827459884,-6392.13,0.00054794,120]
[319526529,1710827459894,-818.66,0.00054794,120]
[319526530,1710827459905,-500.0,0.00054794,120]
[319526531,1710827459916,-712.28,0.00054794,120]
[319526532,1710827459926,-500.0,0.00054794,120]
[319526533,1710827459936,-500.0,0.00054794,120]
[319526534,1710827459946,-509.79,0.00054794,120]
[319526535,1710827459956,-1812.93,0.00054794,120]
[319526536,1710827459970,-690.54,0.00054794,120]
[319526537,1710827459981,-3319.69,0.00054794,120]
[319526538,1710827459991,-500.0,0.00054794,120]
[319526539,1710827460001,-500.0,0.00054794,120]
[319526540,1710827460011,-505.06690617,0.00054794,120]
[319526541,1710827460022,-500.0,0.00054794,120]
[319526542,1710827460032,-500.0,0.00054794,120]
[319526543,1710827460042,-500.0,0.00054794,120]
[319526544,1710827460052,-304.04290964,0.00054794,120]
[319526545,1710827460062,-1962.31,0.00054794,120]
[319526546,1710827460073,-500.0,0.00054794,120]
[319526547,1710827460083,-3097.92,0.00054794,120]
[319526548,1710827460093,-500.0,0.00054794,120]
[319526549,1710827460103,-1154.31,0.00054794,120]
[319526550,1710827460113,-500.0,0.00054794,120]
[319526551,1710827460123,-685.32,0.00054794,120]
[319526552,1710827460132,-2420.04,0.00054794,120]
[319526553,1710827460142,-500.0,0.00054794,120]
[319526554,1710827460151,-1532.56,0.00054794,120]
[319526555,1710827460161,-500.0,0.00054794,120]
[319526556,1710827460171,-500.0,0.00054794,120]
[319526557,1710827460181,-500.0,0.00054794,120]
[319526558,1710827460191,-1200.6,0.00054794,120]
[319526559,1710827460201,-500.0,0.00054794,120]
[319526560,1710827460214,-500.0,0.00054794,120]
[319526561,1710827460223,-1037.55,0.00054794,120]
[319526562,1710827460233,-1040.71,0.00054794,120]
[319526563,1710827460243,-500.0,0.00054794,120]
[319526564,1710827460253,-10993.53,0.00054794,120]
[319526565,1710827460263,-2840.09,0.00054794,120]
[319526566,1710827460273,-500.0,0.00054794,120]
[319526567,1710827460283,-500.0,0.00054794,120]
[319526568,1710827460292,-2830.68,0.00054794,120]
[319526569,1710827460302,-1086.575255,0.00054794,120]
[319526570,1710827460311,-1086.575255,0.00054794,120]
[319526571,1710827460321,-2822.24,0.00054794,120]
[319526572,1710827460331,-646.52,0.00054794,120]
[319526573,1710827460340,-2123.57,0.00054794,120]
[319526574,1710827460350,-1966.25,0.00054794,120]
[319526575,1710827460360,-500.0,0.00054794,120]
[319526576,1710827460370,-649.44,0.00054794,120]
[319526577,1710827460379,-500.0,0.00054794,120]
[319526578,1710827460389,-1086.575255,0.00054794,120]
[319526579,1710827460405,-1086.575261,0.00054794,120]
[319526580,1710827460414,-500.0,0.00054794,120]
[319526581,1710827460424,-500.0,0.00054794,120]
[319526582,1710827460434,-1047.73,0.00054794,120]
[319526583,1710827460444,-1134.96,0.00054794,120]
[319526584,1710827460453,-500.0,0.00054794,120]
[319526585,1710827460465,-500.0,0.00054794,120]
[319526586,1710827460475,-500.0,0.00054794,120]
[319526587,1710827460485,-500.0,0.00054794,120]
[319526588,1710827460494,-3745.32,0.00054794,120]
[319526589,1710827460504,-500.0,0.00054794,120]
[319526590,1710827460514,-500.0,0.00054794,120]
[319526591,1710827460524,-1379.72,0.00054794,120]
[319526592,1710827460535,-500.0,0.00054794,120]
[319526593,1710827460544,-500.0,0.00054794,120]
[319526594,1710827460554,-1229.29,0.00054794,120]
[319526595,1710827460564,-500.0,0.00054794,120]
[319526596,1710827460573,-500.0,0.00054794,120]
[319526597,1710827460582,-500.0,0.00054794,120]
[319526598,1710827460591,-743.99,0.00054794,120]
[319526599,1710827460601,-500.0,0.00054794,120]
[319526600,1710827460610,-500.0,0.00054794,120]
[319526601,1710827460620,-628.13,0.00054794,120]
[319526602,1710827460630,-1973.36,0.00054794,120]
[319526603,1710827460639,-850.45,0.00054794,120]
[319526604,1710827460649,-643.65,0.00054794,120]
[319526605,1710827460659,-1436.94,0.00054794,120]
[319526606,1710827460668,-1623.87,0.00054794,120]
[319526607,1710827460678,-2995.94,0.00054794,120]
[319526608,1710827460687,-500.0,0.00054794,120]
[319526609,1710827460697,-1386.7,0.00054794,120]
[319526610,1710827460710,-1797.16,0.00054794,120]
[319526611,1710827460719,-1038.84,0.00054794,120]
[319526612,1710827460729,-653.57,0.00054794,120]
[319526613,1710827460739,-6815.41,0.00054794,120]
[319526614,1710827460748,-500.0,0.00054794,120]
[319526615,1710827460761,-500.0,0.00054794,120]
[319526616,1710827460771,-500.0,0.00054794,120]
[319526617,1710827460781,-844.11,0.00054794,120]
[319526618,1710827460791,-500.0,0.00054794,120]
[319526619,1710827460804,-500.0,0.00054794,120]
[319526620,1710827460814,-500.0,0.00054794,120]
[319526621,1710827460824,-775.80209755,0.00054794,4]
[319526622,1710827460835,-2518.17,0.00054794,21]
[319526623,1710827460851,-500.0,0.00054794,120]
[319526624,1710827460861,-500.0,0.00054794,120]
[319526625,1710827460871,-500.0,0.00054794,120]
[319526626,1710827460882,-500.0,0.00054794,120]
[319526627,1710827460892,-1249.47,0.00054794,120]
[319526628,1710827460902,-8128.88,0.00054794,120]
[319526629,1710827460912,-644.09,0.00054794,120]
[319526630,1710827460922,-2104.14,0.00054794,120]
[319526631,1710827460933,-343.34367393,0.00054794,120]
[319526632,1710827460942,-500.0,0.00054794,120]
[319526633,1710827460952,-500.0,0.00054794,120]
[319526634,1710827460966,-520.51,0.00054794,120]
[319526635,1710827460977,-500.0,0.00054794,120]
[319526636,1710827460987,-500.0,0.00054794,120]
[319526637,1710827460997,-500.0,0.00054794,120]
[319526638,1710827461009,-523.88,0.00054794,120]
[319526639,1710827461019,-4987.59,0.00054794,120]
[319526640,1710827461029,-344.00109883,0.00054794,120]
[319526641,1710827461039,-1329.62,0.00054794,120]
[319526642,1710827461049,-500.0,0.00054794,120]
[319526643,1710827461059,-500.0,0.00054794,120]
[319526644,1710827461069,-628.67921442,0.00054794,120]
[319526645,1710827461080,-2650.41,0.00054794,120]
[319526646,1710827461089,-500.0,0.00054794,120]
[319526647,1710827461099,-2122.55,0.00054794,120]
[319526648,1710827461109,-8315.42,0.00054794,120]
[319526649,1710827461119,-8238.56,0.00054794,120]
[319526650,1710827461342,-882.83,0.00054794,120]
[319526651,1710827461353,-500.0,0.00054794,120]
[319526652,1710827461362,-500.0,0.00054794,120]
[319526653,1710827461371,-500.0,0.00054794,120]
[319526654,1710827461381,-1643.06,0.00054794,120]
[319526655,1710827461391,-500.0,0.00054794,120]
[319526656,1710827461402,-870.48,0.00054794,120]
[319526657,1710827461412,-500.0,0.00054794,120]
[319526658,1710827461422,-3569.24,0.00054794,120]
[319526659,1710827461433,-500.0,0.00054794,120]
[319526660,1710827461444,-500.0,0.00054794,120]
[319526661,1710827461454,-884.71,0.00054794,120]
[319526662,1710827461467,-500.0,0.00054794,120]
[319526663,1710827461477,-501.30146912,0.00054794,120]
[319526664,1710827461487,-2980.53,0.00054794,120]
[319526665,1710827461497,-3795.75,0.00054794,120]
[319526666,1710827461506,-500.0,0.00054794,120]
[319526667,1710827461516,-500.0,0.00054794,120]
[319526668,1710827461525,-500.0,0.00054794,120]
[319526669,1710827461535,-1136.5,0.00054794,120]
[319526670,1710827461544,-1245.02,0.00054794,120]
[319526671,1710827461554,-500.0,0.00054794,120]
[319526672,1710827461563,-1319.6,0.00054794,120]
[319526673,1710827461573,-500.0,0.00054794,120]
[319526674,1710827461582,-4709.5,0.00054794,120]
[319526675,1710827461591,-500.0,0.00054794,120]
[319526676,1710827461602,-624.19723178,0.00054794,120]
[319526677,1710827461611,-1151.39,0.00054794,120]
[319526678,1710827461620,-500.0,0.00054794,120]
[319526679,1710827461629,-500.0,0.00054794,120]
[319526680,1710827461639,-500.0,0.00054794,120]
[319526681,1710827461649,-500.0,0.00054794,120]
[319526682,1710827461658,-500.0,0.00054794,120]
[319526683,1710827461667,-504.31162375,0.00054794,120]
[319526684,1710827461677,-500.0,0.00054794,120]
[319526685,1710827461686,-500.0,0.00054794,120]
[319526686,1710827461695,-8508.21,0.00054794,120]
[319526687,1710827461704,-1105.32,0.00054794,120]
[319526688,1710827461716,-1495.81,0.00054794,120]
[319526689,1710827461726,-643.14,0.00054794,120]
[319526690,1710827461735,-553.8,0.00054794,120]
[319526691,1710827461745,-500.0,0.00054794,120]
[319526692,1710827461754,-500.0,0.00054794,120]
[319526693,1710827461764,-500.0,0.00054794,120]
[319526694,1710827461773,-500.0,0.00054794,120]
[319526695,1710827461784,-500.0,0.00054794,120]
[319526696,1710827461794,-998.57,0.00054794,120]
[319526697,1710827461803,-500.0,0.00054794,120]
[319526698,1710827461813,-769.96,0.00054794,120]
[319526699,1710827461823,-500.0,0.00054794,120]
[319526700,1710827461832,-500.0,0.00054794,120]
[319526701,1710827461841,-954.53,0.00054794,120]
[319526702,1710827461851,-500.0,0.00054794,120]
[319526703,1710827461861,-13738.43,0.00054794,120]
[319526704,1710827461871,-500.0,0.00054794,120]
[319526705,1710827461881,-501.90337981,0.00054794,120]
[319526706,1710827461890,-2114.35,0.00054794,120]
[319526707,1710827461899,-500.0,0.00054794,120]
[319526708,1710827461909,-500.0,0.00054794,120]
[319526709,1710827461918,-1410.75,0.00054794,120]
[319526710,1710827461928,-2607.41,0.00054794,120]
[319526711,1710827461938,-399.33352279,0.00054794,120]
[319526712,1710827461949,-500.0,0.00054794,120]
[319526713,1710827461964,-500.0,0.00054794,120]
[319526714,1710827461974,-636.29,0.00054794,120]
[319526715,1710827461985,-4751.34,0.00054794,120]
[319526716,1710827461996,-1049.03,0.00054794,120]
[319526717,1710827462007,-500.0,0.00054794,120]
[319526718,1710827462017,-958.9,0.00054794,120]
[319526719,1710827462028,-500.0,0.00054794,120]
[319526720,1710827462038,-500.0,0.00054794,120]
[319526721,1710827462054,-500.0,0.00054794,120]
[319526722,1710827462064,-2780.44,0.00054794,120]
[319526723,1710827462073,-500.0,0.00054794,120]
[319526724,1710827462084,-500.0,0.00054794,120]
[319526725,1710827462094,-500.0,0.00054794,120]
[319526726,1710827462104,-500.0,0.00054794,120]
[319526727,1710827462114,-4283.42,0.00054794,120]
[319526728,1710827462124,-345.90037077,0.00054794,120]
[319526729,1710827462134,-591.34,0.00054794,120]
[319526730,1710827462144,-500.0,0.00054794,120]
[319526731,1710827462154,-1025.59,0.00054794,120]
[319526732,1710827462164,-2199.95,0.00054794,120]
[319526733,1710827462177,-634.14,0.00054794,120]
[319526734,1710827462187,-14611.2,0.00054794,120]
[319526735,1710827462197,-500.0,0.00054794,120]
[319526736,1710827462207,-500.0,0.00054794,120]
[319526737,1710827462222,-1893.62,0.00054794,120]
[319526738,1710827462231,-836.76,0.00054794,120]
[319526739,1710827462242,-500.0,0.00054794,120]
[319526740,1710827462252,-500.0,0.00054794,120]
[319526741,1710827462262,-1421.89,0.00054794,7]
[319526742,1710827462271,-3835.86,0.00054794,120]
[319526743,1710827462281,-500.0,0.00054794,120]
[319526744,1710827462290,-1442.15,0.00054794,120]
[319526745,1710827462300,-500.0,0.00054794,120]
[319526746,1710827462310,-500.0,0.00054794,120]
[319526747,1710827462319,-500.0,0.00054794,120]
[319526748,1710827462329,-1144.33,0.00054794,120]
[319526749,1710827462339,-500.0,0.00054794,120]
[319526750,1710827462349,-608.63981766,0.00054794,120]
[319526751,1710827462358,-5234.98,0.00054794,120]
[319526752,1710827462367,-500.0,0.00054794,120]
[319526753,1710827462377,-861.0,0.00054794,120]
[319526754,1710827462387,-150.0,0.00054794,120]
[319526755,1710827462396,-500.0,0.00054794,120]
[319526756,1710827462405,-500.0,0.00054794,120]
[319526757,1710827462415,-614.75,0.00054794,120]
[319526758,1710827462424,-584.01,0.00054794,120]
[319526759,1710827462433,-614.54088521,0.00054794,120]
[319526760,1710827462443,-783.51,0.00054794,120]
[319526761,1710827462452,-500.0,0.00054794,120]
[319526762,1710827462464,-3537.98,0.00054794,120]
[319526763,1710827462474,-1756.93,0.00054794,120]
[319526764,1710827462484,-2591.17,0.00054794,120]
[319526765,1710827462493,-500.0,0.00054794,120]
[319526766,1710827462503,-528.69,0.00054794,120]
[319526767,1710827462512,-510.36191396,0.00054794,120]
[319526768,1710827462521,-7694.82,0.00054794,120]
[319526769,1710827462531,-1601.56,0.00054794,120]
[319526770,1710827462541,-1099.11,0.00054794,120]
[319526771,1710827462551,-500.0,0.00054794,120]
[319526772,1710827462561,-500.0,0.00054794,120]
[319526773,1710827462571,-521.58,0.00054794,120]
[319526774,1710827462581,-1409.19,0.00054794,120]
[319526775,1710827462592,-2132.44,0.00054794,120]
[319526776,1710827462603,-1549.94,0.00054794,120]
[319526777,1710827462613,-638.76,0.00054794,120]
[319526778,1710827462623,-500.0,0.00054794,120]
[319526779,1710827462632,-1035.89,0.00054794,120]
[319526780,1710827462641,-500.0,0.00054794,120]
[319526781,1710827462650,-790.23,0.00054794,120]
[319526782,1710827462660,-500.0,0.00054794,120]
[319526783,1710827462669,-500.0,0.00054794,120]
[319526784,1710827462678,-168.29014859,0.00054794,120]
[319526785,1710827462688,-500.0,0.00054794,120]
[319526786,1710827462697,-1004.37,0.00054794,120]
[319526787,1710827462707,-7065.9,0.00054794,120]
[319526788,1710827462722,-2332.1,0.00054794,120]
[319526789,1710827462731,-974.26,0.00054794,120]
[319526790,1710827462740,-500.0,0.00054794,120]
[319526791,1710827462750,-500.0,0.00054794,120]
[319526792,1710827462762,-2467.87,0.00054794,120]
[319526793,1710827462772,-500.0,0.00054794,120]
[319526794,1710827462782,-6649.21,0.00054794,120]
[319526795,1710827462791,-930.89,0.00054794,120]
[319526796,1710827462800,-2420.63,0.00054794,120]
[319526797,1710827462810,-500.0,0.00054794,120]
[319526798,1710827462819,-508.66691971,0.00054794,120]
[319526799,1710827462829,-529.45,0.00054794,120]
[319526800,1710827462838,-1756.75,0.00054794,120]
[319526801,1710827462848,-2235.16,0.00054794,120]
[319526802,1710827462858,-739.57,0.00054794,120]
[319526803,1710827462867,-500.0,0.00054794,7]
[319526804,1710827462876,-1794.47,0.00054794,120]
[319526805,1710827462886,-500.0,0.00054794,120]
[319526806,1710827462895,-459.92892592,0.00054794,120]
[319526807,1710827462905,-500.0,0.00054794,120]
[319526808,1710827462914,-500.0,0.00054794,120]
[319526809,1710827462923,-3745.75,0.00054794,120]
[319526810,1710827462933,-1874.64,0.00054794,120]
[319526811,1710827462943,-613.74,0.00054794,120]
[319526812,1710827462952,-522.04,0.00054794,120]
[319526813,1710827462964,-500.0,0.00054794,120]
[319526814,1710827462974,-500.0,0.00054794,120]
[319526815,1710827462984,-500.0,0.00054794,120]
[319526816,1710827462993,-500.0,0.00054794,120]
[319526817,1710827463003,-635.92,0.00054794,120]
[319526818,1710827463012,-500.0,0.00054794,120]
[319526819,1710827463022,-151.031912,0.00054798,63]
[319526820,1710827463031,-150.0,0.000548,30]
[319526821,1710827463041,-155.0,0.000548,120]
[319526822,1710827463050,-3191.91439,0.000548,120]
[319526823,1710827463060,-300.0,0.000548,20]
[319526824,1710827463069,-8000.0,0.00054885,120]
[319526825,1710827463079,-500.0,0.00054886,120]
[319526826,1710827463089,-500.0,0.0005489,7]
[319526827,1710827463098,-500.0,0.0005489,7]
[319526828,1710827463107,-500.0,0.0005489,7]
[319526829,1710827463117,-500.0,0.0005489,7]
[319526830,1710827463127,-500.0,0.0005489,7]
[319526831,1710827463137,-500.0,0.0005489,7]
[319526832,1710827463146,-500.0,0.0005489,7]
[319526833,1710827463157,-500.0,0.0005489,7]
[319526834,1710827463171,-500.0,0.0005489,7]
[319526835,1710827463189,-500.0,0.0005489,7]
[319526836,1710827463207,-500.0,0.0005489,7]
[319526837,1710827463226,-500.0,0.0005489,7]
[319526838,1710827463241,-500.0,0.0005489,7]
[319526839,1710827463257,-500.0,0.0005489,7]
[319526840,1710827463272,-500.0,0.0005489,7]
[319526841,1710827463286,-511.12,0.0005489,7]
[319526842,1710827463301,-500.0,0.0005489,7]
[319526843,1710827463317,-200.0,0.00054892,120]
[319526844,1710827463332,-300.0,0.000549,20]
[319526845,1710827463346,-7451.5487156,0.00054962,2]
[319526846,1710827463361,-676.5161907,0.00054962,2]
[319526847,1710827463376,-5937.4947818,0.00054962,2]
[319526848,1710827463391,-183183.729569,0.00054962,2]
[319526849,1710827463407,-1522.0,0.00055,120]
[319526850,1710827463423,-979.35035056,0.00055,120]
[319526851,1710827463440,-1521700.69,0.00055,30]
[319526852,1710827463454,-1000.0,0.00055,120]
[319526853,1710827463470,-1000.0,0.00055,120]
[319526854,1710827463485,-1000.0,0.00055,120]
[319526855,1710827463498,-1000.0,0.00055,120]
[319526856,1710827463512,-1000.0,0.00055,120]
[319526857,1710827463524,-1000.0,0.00055,120]
[319526858,1710827463537,-1000.0,0.00055,120]
[319526859,1710827463551,-1000.0,0.00055,120]
[319526860,1710827463564,-1000.0,0.00055,120]
[319526861,1710827463577,-1000.0,0.00055,120]
[319526862,1710827463590,-490.81568,0.00055,120]
[319526863,1710827463603,-164.0,0.00055,120]
[319526864,1710827463616,-4413.2798745,0.0005503,2]
[319526865,1710827463629,-242.4374976,0.0005503,2]
[319526866,1710827463641,-1352.397219,0.0005503,2]
[319526867,1710827463654,-155.36268314,0.00055066,4]
[319526868,1710827463668,-10418.4193993,0.00055066,4]
[319526869,1710827463681,-357.72609294,0.00055066,4]
[319526870,1710827463694,-6840.68280305,0.00055066,4]
[319526871,1710827463708,-500.0,0.00055067,31]
[319526872,1710827463725,-500.0,0.00055067,31]
[319526873,1710827463740,-500.0,0.00055067,31]
[319526874,1710827463755,-500.0,0.00055067,31]
[319526875,1710827463771,-500.0,0.00055067,31]
[319526876,1710827463787,-500.0,0.00055067,31]
[319526877,1710827463801,-501.0,0.00055067,31]
[319526878,1710827463814,-645.0,0.00055067,31]
[319526879,1710827463827,-500.0,0.00055068,120]
[319526880,1710827463839,-2000.0,0.00055068,120]
[319526881,1710827463853,-500.0,0.00055068,120]
[319526882,1710827463866,-418.53104287,0.00055068,120]
[319526883,1710827463880,-500.0,0.00055068,120]
[319526884,1710827463892,-395.50191053,0.00055068,120]
[319526885,1710827463906,-500.0,0.00055068,120]
[319526886,1710827463919,-500.0,0.00055068,120]
[319526887,1710827463932,-607.57949726,0.00055068,120]
[319526888,1710827463944,-500.0,0.00055068,120]
[319526889,1710827463957,-453.37715873,0.00055068,120]
[319526890,1710827463972,-187.22735059,0.00055068,120]
[319526891,1710827463985,-388.13376982,0.00055068,120]
[319526892,1710827463998,-500.0,0.00055068,120]
[319526893,1710827464017,-500.0,0.00055068,120]
[319526894,1710827464031,-500.0,0.00055068,120]
[319526895,1710827464043,-478.40453102,0.00055068,120]
[319526896,1710827464056,-500.0,0.00055068,120]
[319526897,1710827464069,-500.0,0.00055068,120]
[319526898,1710827464082,-500.0,0.00055068,120]
[319526899,1710827464096,-279.24868456,0.00055068,120]
[319526900,1710827464109,-501.40503732,0.00055068,120]
[319526901,1710827464122,-500.0,0.00055068,120]
[319526902,1710827464135,-500.0,0.00055068,120]
[319526903,1710827464147,-200.0,0.00055068,120]
[319526904,1710827464161,-500.0,0.00055068,120]
[319526905,1710827464174,-500.0,0.00055068,120]
[319526906,1710827464188,-500.0,0.00055068,120]
[319526907,1710827464201,-500.0,0.00055068,120]
[319526908,1710827464217,-500.0,0.00055068,120]
[319526909,1710827464230,-500.0,0.00055068,120]
[319526910,1710827464244,-500.0,0.00055068,120]
[319526911,1710827464258,-500.0,0.00055068,120]
[319526912,1710827464271,-500.0,0.00055068,120]
[319526913,1710827464284,-500.0,0.00055068,120]
[319526914,1710827464298,-500.0,0.00055068,120]
[319526915,1710827464313,-503.88526344,0.00055068,120]
[319526916,1710827464328,-863.61,0.00055068,120]
[319526917,1710827464344,-500.0,0.00055068,120]
[319526918,1710827464361,-535.61564582,0.00055068,120]
[319526919,1710827464376,-500.0,0.00055068,120]
[319526920,1710827464391,-500.0,0.00055068,120]
[319526921,1710827464405,-506.26,0.00055068,120]
[319526922,1710827464420,-500.0,0.00055068,120]
[319526923,1710827464434,-500.0,0.00055068,120]
[319526924,1710827464448,-500.0,0.00055068,120]
[319526925,1710827464462,-500.0,0.00055068,120]
[319526926,1710827464476,-500.0,0.00055068,120]
[319526927,1710827464490,-500.0,0.00055068,120]
[319526928,1710827464503,-500.0,0.00055068,120]